[Event "Deutscher Jugend Online Cup 2020"]
[Site "Tornelo"]
[Date "2020.11.14"]
[Round "5.7"]
[White "Zhou, Lepu Coco"]
[Black "Bildat, Emilia"]
[Result "0-1"]
[ECO "B38"]
[WhiteElo "1882"]
[BlackElo "1852"]
[Annotator "NA RC"]
[PlyCount "54"]
[EventDate "2020.11.13"]
[EventType "k.o."]
[SourceTitle "playchess.com"]
[Source "ChessBase"]
[SourceQuality "1"]
[TimeControl "600+3"]

1. e4 {[%emt 0:00:00]} c5 {[%emt 0:00:03]} 2. Nf3 {[%emt 0:00:03]} g6 {[%emt 0:00:02]} 3. c4 {[%emt 0:00:09]} Bg7 {[%emt 0:00:03]} 4. d4 {[%emt 0:00:02]} cxd4 {[%emt 0:00:02]} 5. Nxd4 {[%emt 0:00:02]} Nc6 {[%emt 0:00:02]} 6. Be3 {[%emt 0:00:01]} Nf6 {[%emt 0:00:07]} 7. Nc3 {[%emt 0:00:02]} O-O {[%emt 0:00:04]} 8. Be2 {[%emt 0:00:05]} d6 {[%emt 0:00:01]} 9. O-O {[%emt 0:00:02]} Bd7 {[%emt 0:00:04]} 10. Rc1 {[%emt 0:00:02]} Nxd4 {[%emt 0:00:04]} 11. Bxd4 {[%emt 0:00:04]} Bc6 {[%emt 0:00:03]} 12. f3 {[%emt 0:00:22]} Nd7 {[%emt 0:00:03]} 13. b4 $14 {[%emt 0:00:20]} Bxd4+ {[%emt 0:00:14]} 14. Qxd4 {[%emt 0:00:02]} b6 {[%emt 0:00:20]} 15. Rfd1 {[%emt 0:00:43]} Rc8 {[%emt 0:00:11]} 16. Nd5 {[%emt 0:00:45]} Bxd5 {[%emt 0:00:35]} 17. exd5 {[%emt 0:00:04]} a5 {[%emt 0:00:17]} 18. a3 {[%emt 0:00:08]} axb4 {[%emt 0:00:31]} 19. axb4 {[%emt 0:00:02]} Ra8 {[%emt 0:00:04]} 20. Ra1 {[%emt 0:00:06]} Qc7 {[%emt 0:00:08]} 21. Rxa8 {[%emt 0:00:48]} Rxa8 {[%emt 0:00:05]} 22. Ra1 {[%emt 0:00:02]} Rxa1+ {[%emt 0:00:20]} 23. Qxa1 {[%emt 0:00:02]} Ne5 {[%emt 0:00:09]} 24. f4 {[%emt 0:00:22]} Nxc4 {[%emt 0:00:15]} 25. Qa8+ {[%emt 0:00:03]} Kg7 {[%emt 0:00:04]} 26. Qc6 {[%emt 0:00:02]} Qa7 {[%emt 0:00:26]} 27. Qxc4 {[%emt 0:00:08]} b5+ {[%emt 0:00:03]} 0-1

[Event "Deutscher Jugend Online Cup 2020"]
[Site "Tornelo"]
[Date "2020.11.14"]
[Round "5.7"]
[White "Trunz, Tamila"]
[Black "Kutz, Ida"]
[Result "1-0"]
[ECO "B24"]
[WhiteElo "1379"]
[BlackElo "1269"]
[Annotator "NA RC"]
[PlyCount "107"]
[EventDate "2020.11.13"]
[EventType "k.o."]
[SourceTitle "playchess.com"]
[Source "ChessBase"]
[SourceQuality "1"]
[TimeControl "600+3"]

1. e4 {[%emt 0:00:00]} c5 {[%emt 0:00:04]} 2. Nc3 {[%emt 0:00:04]} e6 {[%emt 0:00:04]} 3. g3 {[%emt 0:00:06]} a6 {[%emt 0:00:03]} 4. Bg2 {[%emt 0:00:03]} Nc6 {[%emt 0:00:07]} 5. d3 {[%emt 0:00:07]} Nf6 {[%emt 0:00:02]} 6. h3 {[%emt 0:00:08]} Be7 {[%emt 0:00:02]} 7. Be3 {[%emt 0:00:05]} O-O {[%emt 0:00:02]} 8. Nge2 {[%emt 0:00:02]} d5 {[%emt 0:00:05]} 9. exd5 {[%emt 0:00:08]} exd5 {[%emt 0:00:02]} 10. d4 {[%emt 0:00:05]} cxd4 {[%emt 0:00:16]} 11. Nxd4 {[%emt 0:00:04]} Nxd4 {[%emt 0:00:21]} 12. Bxd4 {[%emt 0:00:05]} Re8 {[%emt 0:00:06]} 13. O-O {[%emt 0:00:05]} Bd6 {[%emt 0:00:08]} 14. Bxf6 {[%emt 0:00:06]} Qxf6 {[%emt 0:00:10]} 15. Bxd5 {[%emt 0:00:15]} Bxh3 {[%emt 0:00:13]} 16. Re1 {[%emt 0:00:19]} Bc5 {[%emt 0:00:13]} 17. Qd2 {[%emt 0:00:33]} Qd6 {[%emt 0:00:26]} 18. Kh2 {[%emt 0:00:44]} Bg4 {[%emt 0:00:29]} 19. Ne4 {[%emt 0:00:15]} Qb6 {[%emt 0:00:16]} 20. Bxf7+ {[%emt 0:00:36]} Kxf7 {[%emt 0:00:33]} 21. Qd5+ {[%emt 0:00:32]} Be6 {[%emt 0:00:10]} 22. Qxc5 {[%emt 0:00:07]} Qxc5 {[%emt 0:00:15]} 23. Nxc5 {[%emt 0:00:03]} b6 {[%emt 0:00:15]} 24. Nxe6 {[%emt 0:00:11]} Rxe6 {[%emt 0:00:02]} 25. Rxe6 {[%emt 0:00:05]} Kxe6 {[%emt 0:00:02]} 26. c4 {[%emt 0:00:06]} Rf8 {[%emt 0:00:04]} 27. Kg2 {[%emt 0:00:04]} Rf5 {[%emt 0:00:07]} 28. b3 {[%emt 0:00:06]} b5 {[%emt 0:00:03]} 29. cxb5 {[%emt 0:00:04]} axb5 {[%emt 0:00:02]} 30. a4 {[%emt 0:00:04]} bxa4 {[%emt 0:00:02]} 31. bxa4 {[%emt 0:00:03]} Ra5 {[%emt 0:00:02]} 32. Kf3 {[%emt 0:00:06]} Rf5+ {[%emt 0:00:06]} 33. Ke3 {[%emt 0:00:04]} Ra5 {[%emt 0:00:02]} 34. Kd4 {[%emt 0:00:04]} Kd6 {[%emt 0:00:01]} 35. Kc4 {[%emt 0:00:03]} Kc6 {[%emt 0:00:02]} 36. Kb4 {[%emt 0:00:04]} Kb6 {[%emt 0:00:03]} 37. Rd1 {[%emt 0:00:11]} Rc5 {[%emt 0:00:15]} 38. Rd6+ {[%emt 0:00:05]} Rc6 {[%emt 0:00:04]} 39. a5+ {[%emt 0:00:04]} Kc7 {[%emt 0:00:04]} 40. Rxc6+ {[%emt 0:00:24]} Kxc6 {[%emt 0:00:02]} 41. Kc4 {[%emt 0:00:03]} g6 {[%emt 0:00:05]} 42. g4 {[%emt 0:00:14]} h6 {[%emt 0:00:10]} 43. Kd4 {[%emt 0:00:14]} Kb5 {[%emt 0:00:03]} 44. Ke5 {[%emt 0:00:03]} Kxa5 {[%emt 0:00:02]} 45. Kf6 {[%emt 0:00:05]} Kb5 {[%emt 0:00:02]} 46. Kxg6 {[%emt 0:00:03]} Kc5 {[%emt 0:00:02]} 47. Kxh6 {[%emt 0:00:03]} Kd5 {[%emt 0:00:01]} 48. f4 {[%emt 0:00:03]} Ke6 {[%emt 0:00:01]} 49. f5+ {[%emt 0:00:05]} Kf7 {[%emt 0:00:02]} 50. g5 {[%emt 0:00:02]} Kg8 {[%emt 0:00:02]} 51. g6 {[%emt 0:00:04]} Kh8 {[%emt 0:00:04]} 52. f6 {[%emt 0:00:07]} Kg8 {[%emt 0:00:02]} 53. f7+ {[%emt 0:00:05]} Kh8 {[%emt 0:00:05]} 54. g7# {[%emt 0:00:04]} 1-0

[Event "Deutscher Jugend Online Cup 2020"]
[Site "Tornelo"]
[Date "2020.11.14"]
[Round "5.7"]
[White "Haug, Mara"]
[Black "Wartenberg, Alissa"]
[Result "1/2-1/2"]
[ECO "C50"]
[WhiteElo "1356"]
[BlackElo "1463"]
[Annotator "NA RC"]
[PlyCount "128"]
[EventDate "2020.11.13"]
[EventType "k.o."]
[SourceTitle "playchess.com"]
[Source "ChessBase"]
[SourceQuality "1"]
[TimeControl "600+3"]

1. e4 {[%emt 0:00:00]} e5 {[%emt 0:00:06]} 2. Nf3 {[%emt 0:00:03]} Nc6 {[%emt 0:00:05]} 3. Bc4 {[%emt 0:00:03]} Bc5 {[%emt 0:00:08]} 4. O-O {[%emt 0:00:03]} Nf6 {[%emt 0:00:07]} 5. d4 {[%emt 0:00:02]} Bxd4 {[%emt 0:00:03]} 6. Nxd4 {[%emt 0:00:03]} Nxd4 {[%emt 0:00:02]} 7. Bg5 {[%emt 0:00:02]} d6 {[%emt 0:00:25]} 8. f4 {[%emt 0:00:11]} Qe7 {[%emt 0:00:18]} 9. fxe5 {[%emt 0:00:03]} dxe5 {[%emt 0:00:03]} 10. Kh1 {[%emt 0:00:11]} Rg8 {[%emt 0:00:19]} 11. c3 {[%emt 0:00:15]} Ne6 {[%emt 0:00:08]} 12. Bxf6 {[%emt 0:00:11]} gxf6 {[%emt 0:00:04]} 13. Qf3 {[%emt 0:00:22]} Nf4 {[%emt 0:01:43]} 14. g3 {[%emt 0:00:16]} Bg4 {[%emt 0:00:12]} 15. Qe3 {[%emt 0:00:42]} Ne6 {[%emt 0:00:40]} 16. Na3 {[%emt 0:00:21]} a6 {[%emt 0:00:44]} 17. Nc2 {[%emt 0:00:27]} Ng5 {[%emt 0:01:16]} 18. Nb4 {[%emt 0:00:38]} Bf3+ {[%emt 0:00:19]} 19. Rxf3 {[%emt 0:00:16]} Nxf3 {[%emt 0:00:02]} 20. Qxf3 {[%emt 0:00:02]} c6 {[%emt 0:00:07]} 21. Qh5 {[%emt 0:00:17]} Rg7 {[%emt 0:00:28]} 22. Qh6 {[%emt 0:00:14]} Kf8 {[%emt 0:00:40]} 23. Nd3 {[%emt 0:00:38]} Kg8 {[%emt 0:00:23]} 24. Rf1 {[%emt 0:00:26]} Rg6 {[%emt 0:00:07]} 25. Qh5 {[%emt 0:00:13]} Rd8 {[%emt 0:00:10]} 26. Nf2 {[%emt 0:00:11]} Qc5 {[%emt 0:00:10]} 27. Bb3 {[%emt 0:00:13]} Rd2 {[%emt 0:00:25]} 28. Nd1 {[%emt 0:00:32]} Qe7 {[%emt 0:00:15]} 29. Qh4 {[%emt 0:00:11]} Rd6 {[%emt 0:00:07]} 30. Qh3 {[%emt 0:00:11]} Qd7 {[%emt 0:00:07]} 31. Qg2 {[%emt 0:00:13]} Rd2 {[%emt 0:00:04]} 32. Qf3 {[%emt 0:00:08]} Rh6 {[%emt 0:00:05]} 33. Rf2 {[%emt 0:00:11]} Rxf2 {[%emt 0:00:03]} 34. Qxf2 {[%emt 0:00:08]} Qd3 {[%emt 0:00:02]} 35. Ne3 {[%emt 0:00:11]} Qxe4+ {[%emt 0:00:04]} 36. Kg1 {[%emt 0:00:06]} Qb1+ {[%emt 0:00:03]} 37. Kg2 {[%emt 0:00:14]} Qe4+ {[%emt 0:00:05]} 38. Kg1 {[%emt 0:00:03]} Qg6 {[%emt 0:00:08]} 39. Nf5 {[%emt 0:00:23]} Kf8 {[%emt 0:00:40]} 40. Nxh6 {[%emt 0:00:05]} Qxh6 {[%emt 0:00:03]} 41. Qc5+ {[%emt 0:00:06]} Kg7 {[%emt 0:00:04]} 42. Qf2 {[%emt 0:00:23]} Qc1+ {[%emt 0:00:04]} 43. Kg2 {[%emt 0:00:03]} Qb1 {[%emt 0:00:07]} 44. Qe2 {[%emt 0:00:11]} Qf5 {[%emt 0:00:06]} 45. Bc2 {[%emt 0:00:09]} Qg5 {[%emt 0:00:10]} 46. Qd3 {[%emt 0:00:07]} Qh5 {[%emt 0:00:05]} 47. Qe4 {[%emt 0:00:13]} Qh6 {[%emt 0:00:07]} 48. Qg4+ {[%emt 0:00:13]} Kh8 {[%emt 0:00:09]} 49. Qc8+ {[%emt 0:00:10]} Kg7 {[%emt 0:00:02]} 50. Qg4+ {[%emt 0:00:03]} Kh8 {[%emt 0:00:02]} 51. Qe2 {[%emt 0:00:06]} Kg7 {[%emt 0:00:06]} 52. Bb3 {[%emt 0:00:05]} Qg5 {[%emt 0:00:08]} 53. h4 {[%emt 0:00:14]} Qg6 {[%emt 0:00:06]} 54. Bc2 {[%emt 0:00:13]} Qh6 {[%emt 0:00:05]} 55. Qg4+ {[%emt 0:00:13]} Kh8 {[%emt 0:00:02]} 56. Kh3 {[%emt 0:00:15]} Qf8 {[%emt 0:00:12]} 57. Qf5 {[%emt 0:00:10]} Qh6 {[%emt 0:00:05]} 58. Qc8+ {[%emt 0:00:14]} Kg7 {[%emt 0:00:02]} 59. Qxb7 {[%emt 0:00:07]} Qc1 {[%emt 0:00:04]} 60. Bb3 {[%emt 0:00:08]} Qf1+ {[%emt 0:00:02]} 61. Kg4 {[%emt 0:00:04]} Qe2+ {[%emt 0:00:03]} 62. Kh3 {[%emt 0:00:08]} Qf1+ {[%emt 0:00:01]} 63. Kh2 {[%emt 0:00:01]} Qf2+ {[%emt 0:00:02]} 64. Kh3 {[%emt 0:00:02]} Qf1+ {[%emt 0:00:02]} 1/2-1/2

[Event "Deutscher Jugend Online Cup 2020"]
[Site "Tornelo"]
[Date "2020.11.14"]
[Round "6.1"]
[White "Pohle, Saskia"]
[Black "Becker, Linda"]
[Result "1/2-1/2"]
[ECO "C08"]
[WhiteElo "1815"]
[BlackElo "1763"]
[Annotator "NA RC"]
[PlyCount "98"]
[EventDate "2020.11.13"]
[EventType "k.o."]
[SourceTitle "playchess.com"]
[Source "ChessBase"]
[SourceQuality "1"]
[TimeControl "600+3"]

1. e4 {[%emt 0:00:00]} e6 {[%emt 0:00:03]} 2. d4 {[%emt 0:00:03]} d5 {[%emt 0:00:01]} 3. Nd2 {[%emt 0:00:01]} c5 {[%emt 0:00:02]} 4. exd5 {[%emt 0:00:01]} exd5 {[%emt 0:00:02]} 5. Ngf3 {[%emt 0:00:03]} Nf6 {[%emt 0:00:14]} 6. h3 {[%emt 0:00:12]} Nc6 {[%emt 0:00:06]} 7. Bb5 {[%emt 0:00:03]} Be7 {[%emt 0:00:16]} 8. dxc5 {[%emt 0:00:11]} Bxc5 {[%emt 0:00:06]} 9. O-O {[%emt 0:00:01]} O-O {[%emt 0:00:04]} 10. Nb3 {[%emt 0:00:04]} Bb6 {[%emt 0:00:04]} 11. Bg5 {[%emt 0:00:10]} Qd6 {[%emt 0:00:22]} 12. c3 {[%emt 0:00:12]} Ne4 {[%emt 0:00:11]} 13. Bh4 {[%emt 0:00:16]} a6 {[%emt 0:00:19]} 14. Bd3 {[%emt 0:00:08]} Bf5 {[%emt 0:00:13]} 15. Bxe4 {[%emt 0:00:07]} Bxe4 {[%emt 0:00:06]} 16. Nfd4 {[%emt 0:00:02]} Qg6 {[%emt 0:00:19]} 17. Bg3 {[%emt 0:00:05]} Rfe8 {[%emt 0:00:08]} 18. Qd2 {[%emt 0:00:10]} Rad8 {[%emt 0:00:09]} 19. Rfe1 {[%emt 0:00:09]} h5 {[%emt 0:00:24]} 20. Qf4 {[%emt 0:00:27]} Nxd4 {[%emt 0:00:15]} 21. Nxd4 {[%emt 0:00:03]} Bxd4 {[%emt 0:00:03]} 22. cxd4 {[%emt 0:00:01]} Rc8 {[%emt 0:00:03]} 23. Rac1 {[%emt 0:00:06]} Qf5 {[%emt 0:00:11]} 24. Qd2 {[%emt 0:00:36]} Qg6 {[%emt 0:00:10]} 25. h4 {[%emt 0:00:13]} Qb6 {[%emt 0:00:21]} 26. Be5 {[%emt 0:00:21]} Qg6 {[%emt 0:00:14]} 27. Bg3 {[%emt 0:00:13]} Qb6 {[%emt 0:00:04]} 28. b3 {[%emt 0:00:07]} Qb5 {[%emt 0:00:07]} 29. Qg5 {[%emt 0:00:15]} Bg6 {[%emt 0:00:23]} 30. Be5 {[%emt 0:00:25]} Qd3 {[%emt 0:00:21]} 31. Rcd1 {[%emt 0:00:45]} Qf5 {[%emt 0:00:05]} 32. Qg3 {[%emt 0:00:02]} Rc2 {[%emt 0:00:08]} 33. a3 {[%emt 0:00:06]} Rec8 {[%emt 0:00:06]} 34. b4 {[%emt 0:00:08]} R8c3 {[%emt 0:00:10]} 35. Re3 {[%emt 0:00:02]} Rxe3 {[%emt 0:00:25]} 36. Qxe3 {[%emt 0:00:02]} Qe4 {[%emt 0:00:03]} 37. Qg3 {[%emt 0:00:08]} Re2 {[%emt 0:00:10]} 38. Kh2 {[%emt 0:00:09]} Re1 {[%emt 0:00:06]} 39. Rd2 {[%emt 0:00:04]} Rc1 {[%emt 0:00:06]} 40. Qg5 {[%emt 0:00:20]} Qe1 {[%emt 0:00:14]} 41. Qd8+ {[%emt 0:00:40]} Kh7 {[%emt 0:00:04]} 42. Qg5 {[%emt 0:00:02]} Qg1+ {[%emt 0:00:17]} 43. Kg3 {[%emt 0:00:09]} Rc3+ {[%emt 0:00:03]} 44. f3 {[%emt 0:00:03]} Qe1+ {[%emt 0:00:06]} 45. Kh2 {[%emt 0:00:10]} Rc1 {[%emt 0:00:05]} 46. Qf4 {[%emt 0:00:29]} Qh1+ {[%emt 0:00:07]} 47. Kg3 {[%emt 0:00:03]} Qe1+ {[%emt 0:00:02]} 48. Kh2 {[%emt 0:00:04]} Qh1+ {[%emt 0:00:03]} 49. Kg3 {[%emt 0:00:03]} Qe1+ {[%emt 0:00:02]} 1/2-1/2

[Event "Deutscher Jugend Online Cup 2020"]
[Site "Tornelo"]
[Date "2020.11.14"]
[Round "6.2"]
[White "Bildat, Emilia"]
[Black "Zhou, Lepu Coco"]
[Result "1-0"]
[ECO "A11"]
[WhiteElo "1852"]
[BlackElo "1882"]
[Annotator "NA RC"]
[PlyCount "93"]
[EventDate "2020.11.13"]
[EventType "k.o."]
[SourceTitle "playchess.com"]
[Source "ChessBase"]
[SourceQuality "1"]
[TimeControl "600+3"]

1. c4 {[%emt 0:00:00]} Nf6 {[%emt 0:00:04]} 2. g3 {[%emt 0:00:02]} c6 {[%emt 0:00:02]} 3. Bg2 {[%emt 0:00:02]} d5 {[%emt 0:00:02]} 4. Nf3 {[%emt 0:00:03]} dxc4 {[%emt 0:00:01]} 5. Qc2 {[%emt 0:00:06]} Qd5 {[%emt 0:00:05]} 6. Na3 {[%emt 0:00:32]} b5 {[%emt 0:00:33]} 7. O-O {[%emt 0:01:01]} Bf5 {[%emt 0:00:09]} 8. Qd1 {[%emt 0:00:42]} e6 {[%emt 0:00:27]} 9. Nc2 {[%emt 0:00:42]} Bxc2 {[%emt 0:00:28]} 10. Qxc2 {[%emt 0:00:03]} Be7 {[%emt 0:00:06]} 11. Rd1 {[%emt 0:00:16]} O-O {[%emt 0:00:25]} 12. d3 {[%emt 0:00:07]} cxd3 {[%emt 0:00:02]} 13. Rxd3 {[%emt 0:00:03]} Qh5 {[%emt 0:00:38]} 14. Nd4 {[%emt 0:00:27]} Ng4 {[%emt 0:01:30]} 15. h3 {[%emt 0:00:17]} Ne5 {[%emt 0:00:04]} 16. Rd1 {[%emt 0:00:13]} a6 {[%emt 0:01:05]} 17. Bf4 {[%emt 0:00:53]} Nbd7 {[%emt 0:00:40]} 18. g4 {[%emt 0:01:10]} Qg6 {[%emt 0:00:49]} 19. Qxg6 {[%emt 0:00:25]} Nxg6 {[%emt 0:00:05]} 20. Nxc6 {[%emt 0:00:18]} Bh4 {[%emt 0:01:36]} 21. Rxd7 {[%emt 0:00:29]} Nxf4 {[%emt 0:00:54]} 22. Ne7+ {[%emt 0:00:27]} Bxe7 {[%emt 0:00:14]} 23. Bxa8 {[%emt 0:00:02]} Bf6 {[%emt 0:00:55]} 24. Bb7 {[%emt 0:00:34]} Nxh3+ {[%emt 0:00:04]} 25. Kf1 {[%emt 0:00:11]} Bxb2 {[%emt 0:00:04]} 26. Rb1 {[%emt 0:00:04]} Bf6 {[%emt 0:00:07]} 27. Bxa6 {[%emt 0:00:04]} Bh4 {[%emt 0:00:03]} 28. f3 {[%emt 0:00:05]} f5 {[%emt 0:00:02]} 29. Rxb5 {[%emt 0:00:20]} fxg4 {[%emt 0:00:03]} 30. Rbb7 {[%emt 0:00:50]} Bf6 {[%emt 0:00:03]} 31. Bc4 {[%emt 0:00:10]} gxf3 {[%emt 0:00:04]} 32. exf3 {[%emt 0:00:02]} Re8 {[%emt 0:00:03]} 33. Rb6 {[%emt 0:00:09]} Nf4 {[%emt 0:00:03]} 34. a4 {[%emt 0:00:06]} Rc8 {[%emt 0:00:03]} 35. Bxe6+ {[%emt 0:00:05]} Kh8 {[%emt 0:00:03]} 36. a5 {[%emt 0:00:05]} Rc1+ {[%emt 0:00:02]} 37. Kf2 {[%emt 0:00:02]} Nh3+ {[%emt 0:00:03]} 38. Ke3 {[%emt 0:00:04]} Bg5+ {[%emt 0:00:02]} 39. Ke4 {[%emt 0:00:04]} Re1+ {[%emt 0:00:02]} 40. Kd5 {[%emt 0:00:03]} Rd1+ {[%emt 0:00:02]} 41. Kc6 {[%emt 0:00:03]} Rc1+ {[%emt 0:00:02]} 42. Kb7 {[%emt 0:00:02]} Nf4 {[%emt 0:00:03]} 43. a6 {[%emt 0:00:04]} Nxe6 {[%emt 0:00:05]} 44. Rxe6 {[%emt 0:00:02]} h6 {[%emt 0:00:01]} 45. a7 {[%emt 0:00:05]} Rb1+ {[%emt 0:00:02]} 46. Rb6 {[%emt 0:00:02]} Rxb6+ {[%emt 0:00:03]} 47. Kxb6 {[%emt 0:00:02]} 1-0

[Event "Deutscher Jugend Online Cup 2020"]
[Site "Tornelo"]
[Date "2020.11.14"]
[Round "6.4"]
[White "Kempe, Caius Emilian"]
[Black "Costa, Leonardo"]
[Result "0-1"]
[ECO "A01"]
[WhiteElo "1865"]
[BlackElo "2165"]
[Annotator "RC"]
[PlyCount "30"]
[EventDate "2020.11.13"]
[EventType "k.o."]
[SourceTitle "playchess.com"]
[Source "ChessBase"]
[SourceQuality "1"]
[TimeControl "600+3"]

1. b3 {[%emt 0:00:00]} Nf6 {[%emt 0:00:03]} 2. Bb2 {[%emt 0:00:02]} g6 {[%emt 0:00:01]} 3. d3 {[%emt 0:00:02]} Bg7 {[%emt 0:00:02]} 4. e3 {[%emt 0:00:01]} O-O {[%emt 0:00:01]} 5. Nd2 {[%emt 0:00:01]} d6 {[%emt 0:00:01]} 6. f4 {[%emt 0:00:01]} c5 {[%emt 0:00:01]} 7. Ngf3 {[%emt 0:00:01]} Nc6 {[%emt 0:00:01]} 8. h3 {[%emt 0:00:05]} e6 {[%emt 0:01:13]} 9. Be2 {[%emt 0:00:03]} Nd5 {[%emt 0:00:19]} 10. Bxg7 {[%emt 0:00:08]} Nxe3 {[%emt 0:00:35]} 11. Qc1 {[%emt 0:00:13]} Kxg7 {[%emt 0:00:03]} 12. Ne4 {[%emt 0:00:22]} Nxg2+ {[%emt 0:01:07]} 13. Kf2 {[%emt 0:00:03]} Nh4 {[%emt 0:00:02]} 14. Nxd6 {[%emt 0:00:23]} Nxf3 {[%emt 0:00:32]} 15. Qb2+ {[%emt 0:00:06]} Nfd4 {[%emt 0:00:10]} 0-1

[Event "Deutscher Jugend Online Cup 2020"]
[Site "Tornelo"]
[Date "2020.11.14"]
[Round "6.4"]
[White "Braeutigam, Katerina"]
[Black "Trunz, Michelle"]
[Result "0-1"]
[ECO "B24"]
[WhiteElo "1737"]
[BlackElo "1673"]
[Annotator "NA RC"]
[PlyCount "80"]
[EventDate "2020.11.13"]
[EventType "k.o."]
[SourceTitle "playchess.com"]
[Source "ChessBase"]
[SourceQuality "1"]
[TimeControl "600+3"]

1. e4 {[%emt 0:00:00]} c5 {[%emt 0:00:03]} 2. Nc3 {[%emt 0:00:04]} d6 {[%emt 0:00:02]} 3. g3 {[%emt 0:00:03]} Nf6 {[%emt 0:00:10]} 4. Bg2 {[%emt 0:00:02]} e6 {[%emt 0:00:09]} 5. d3 {[%emt 0:00:09]} Be7 {[%emt 0:00:02]} 6. f4 {[%emt 0:00:03]} Nc6 {[%emt 0:00:05]} 7. Nf3 {[%emt 0:00:02]} Qc7 {[%emt 0:00:02]} 8. O-O {[%emt 0:00:04]} a6 {[%emt 0:00:04]} 9. a4 {[%emt 0:00:06]} O-O {[%emt 0:00:06]} 10. Be3 {[%emt 0:00:11]} Rd8 {[%emt 0:00:16]} 11. d4 {[%emt 0:00:11]} cxd4 {[%emt 0:00:14]} 12. Nxd4 {[%emt 0:00:03]} Nxd4 {[%emt 0:00:21]} 13. Bxd4 {[%emt 0:00:03]} Bd7 {[%emt 0:00:26]} 14. a5 {[%emt 0:00:13]} Re8 {[%emt 0:00:36]} 15. Qf3 {[%emt 0:00:20]} Bc6 {[%emt 0:00:05]} 16. Qf2 {[%emt 0:00:04]} Qc8 {[%emt 0:00:12]} 17. e5 {[%emt 0:00:19]} Bxg2 {[%emt 0:00:21]} 18. Kxg2 {[%emt 0:00:04]} Ng4 {[%emt 0:00:46]} 19. Qf3 {[%emt 0:00:39]} Nh6 {[%emt 0:00:11]} 20. Qd3 {[%emt 0:00:41]} d5 {[%emt 0:00:22]} 21. h3 {[%emt 0:00:56]} Nf5 {[%emt 0:00:07]} 22. Bg1 {[%emt 0:00:22]} Qc6 {[%emt 0:00:26]} 23. Kh2 {[%emt 0:00:08]} g6 {[%emt 0:00:12]} 24. g4 {[%emt 0:00:19]} Nh6 {[%emt 0:00:21]} 25. Be3 {[%emt 0:00:19]} Bf8 {[%emt 0:00:57]} 26. Qd2 {[%emt 0:00:44]} f5 {[%emt 0:00:15]} 27. exf6 {[%emt 0:00:12]} Nf7 {[%emt 0:00:02]} 28. f5 {[%emt 0:00:32]} Bd6+ {[%emt 0:00:12]} 29. Kg1 {[%emt 0:00:08]} Rad8 {[%emt 0:00:59]} 30. fxg6 {[%emt 0:01:01]} hxg6 {[%emt 0:00:06]} 31. Qd3 {[%emt 0:00:48]} Kh7 {[%emt 0:00:14]} 32. h4 {[%emt 0:00:25]} Ne5 {[%emt 0:00:14]} 33. Qe2 {[%emt 0:00:10]} Nf7 {[%emt 0:00:16]} 34. h5 {[%emt 0:00:27]} Rg8 {[%emt 0:00:29]} 35. Rf3 {[%emt 0:00:45]} Ne5 {[%emt 0:00:44]} 36. hxg6+ {[%emt 0:00:46]} Rxg6 {[%emt 0:00:16]} 37. Rh3+ {[%emt 0:00:19]} Kg8 {[%emt 0:00:02]} 38. Rf1 {[%emt 0:00:05]} Nxg4 {[%emt 0:00:12]} 39. f7+ {[%emt 0:00:03]} Kg7 {[%emt 0:00:15]} 40. Bd4+ {[%emt 0:00:05]} e5 {[%emt 0:00:24]} 0-1

[Event "Deutscher Jugend Online Cup 2020"]
[Site "Tornelo"]
[Date "2020.11.14"]
[Round "6.4"]
[White "Kutz, Ida"]
[Black "Trunz, Tamila"]
[Result "0-1"]
[ECO "A21"]
[WhiteElo "1269"]
[BlackElo "1379"]
[Annotator "NA RC"]
[PlyCount "104"]
[EventDate "2020.11.13"]
[EventType "k.o."]
[SourceTitle "playchess.com"]
[Source "ChessBase"]
[SourceQuality "1"]
[TimeControl "600+3"]

1. c4 {[%emt 0:00:00]} e5 {[%emt 0:00:04]} 2. Nc3 {[%emt 0:00:03]} f5 {[%emt 0:00:03]} 3. d3 {[%emt 0:00:04]} Nf6 {[%emt 0:00:04]} 4. Nf3 {[%emt 0:00:05]} Nc6 {[%emt 0:00:09]} 5. g3 {[%emt 0:00:04]} Be7 {[%emt 0:00:08]} 6. Bg2 {[%emt 0:00:03]} d6 {[%emt 0:00:05]} 7. O-O {[%emt 0:00:02]} O-O {[%emt 0:00:04]} 8. Re1 {[%emt 0:00:02]} h6 {[%emt 0:00:15]} 9. e4 {[%emt 0:00:10]} fxe4 {[%emt 0:00:05]} 10. dxe4 {[%emt 0:00:04]} Bg4 {[%emt 0:00:09]} 11. Nd5 {[%emt 0:00:05]} Nxd5 {[%emt 0:00:09]} 12. cxd5 {[%emt 0:00:07]} Nd4 {[%emt 0:00:04]} 13. Re3 {[%emt 0:00:20]} Bg5 {[%emt 0:00:05]} 14. Rd3 {[%emt 0:00:06]} Qf6 {[%emt 0:00:11]} 15. Bxg5 {[%emt 0:00:07]} hxg5 {[%emt 0:00:04]} 16. h3 {[%emt 0:00:23]} Nxf3+ {[%emt 0:00:20]} 17. Bxf3 {[%emt 0:00:12]} Bxf3 {[%emt 0:00:04]} 18. Qd2 {[%emt 0:00:12]} Bxe4 {[%emt 0:00:04]} 19. Rc3 {[%emt 0:00:38]} Rf7 {[%emt 0:00:16]} 20. Re3 {[%emt 0:00:16]} Qf5 {[%emt 0:00:18]} 21. g4 {[%emt 0:00:07]} Qf4 {[%emt 0:00:05]} 22. Rd1 {[%emt 0:00:21]} Raf8 {[%emt 0:00:21]} 23. Re2 {[%emt 0:00:40]} Qf3 {[%emt 0:00:12]} 24. Rxe4 {[%emt 0:00:22]} Qxe4 {[%emt 0:00:17]} 25. Qe3 {[%emt 0:00:10]} Qxe3 {[%emt 0:00:10]} 26. fxe3 {[%emt 0:00:03]} Rf3 {[%emt 0:00:04]} 27. Kg2 {[%emt 0:00:11]} Rxe3 {[%emt 0:00:16]} 28. Rd2 {[%emt 0:00:10]} e4 {[%emt 0:00:07]} 29. Rc2 {[%emt 0:00:13]} Rf7 {[%emt 0:00:13]} 30. a3 {[%emt 0:00:11]} Rd3 {[%emt 0:00:05]} 31. Re2 {[%emt 0:00:17]} e3 {[%emt 0:00:04]} 32. Kg3 {[%emt 0:00:11]} Re7 {[%emt 0:00:21]} 33. Kf3 {[%emt 0:00:12]} Rd2 {[%emt 0:00:25]} 34. Rxe3 {[%emt 0:00:22]} Rxe3+ {[%emt 0:00:13]} 35. Kxe3 {[%emt 0:00:02]} Rxb2 {[%emt 0:00:07]} 36. Ke4 {[%emt 0:00:03]} c6 {[%emt 0:00:07]} 37. Kd4 {[%emt 0:00:05]} c5+ {[%emt 0:00:04]} 38. Kc4 {[%emt 0:00:03]} b5+ {[%emt 0:00:04]} 39. Kd3 {[%emt 0:00:02]} b4 {[%emt 0:00:10]} 40. axb4 {[%emt 0:00:05]} cxb4 {[%emt 0:00:05]} 41. Kc4 {[%emt 0:00:01]} a5 {[%emt 0:00:06]} 42. Kb5 {[%emt 0:00:05]} a4 {[%emt 0:00:02]} 43. Kxa4 {[%emt 0:00:02]} b3 {[%emt 0:00:06]} 44. Ka3 {[%emt 0:00:03]} Rb1 {[%emt 0:00:05]} 45. Kb4 {[%emt 0:00:13]} Kf7 {[%emt 0:00:08]} 46. Kc4 {[%emt 0:00:06]} Kf6 {[%emt 0:00:08]} 47. Kd4 {[%emt 0:00:02]} Rc1 {[%emt 0:00:06]} 48. Kd3 {[%emt 0:00:04]} b2 {[%emt 0:00:07]} 49. Kd2 {[%emt 0:00:02]} b1=Q {[%emt 0:00:07]} 50. Ke3 {[%emt 0:00:02]} Qb3+ {[%emt 0:00:04]} 51. Kd4 {[%emt 0:00:04]} Qc3+ {[%emt 0:00:04]} 52. Ke4 {[%emt 0:00:02]} Re1# {[%emt 0:00:03]} 0-1